Cogmind - Beta 16 @@@ ROGUE MODE // 2025.11.19 @ 13:20:16 Player: k1ll3rb0t Result: Destroyed by EXE-6 with Concept XC Strikerail Performance ------------- Evolutions (8) 4000 Regions Visited (23) 4600 Robots Destroyed (304) 1520 Value Destroyed (12797) 12797 Prototype IDs (65) 1300 Alien Tech Used (5) 1000 Bonus (8608) 8608 TOTAL SCORE: 33825 Bonus ------- Triggered High Security 500 High Alert Combat Kills 2593 Follower Combat Kills 2950 Network Hubs Disabled 600 Registered with UFD 300 Met Optimus in HQ 500 Met Data Miner 300 Built Enhanced Grunts 300 A7 Reached Mainframe 300 Met R17 at Cetus 500 Friendly Fire -235 Cogmind --------- Core Integrity 0/1450 Matter 67/300 Energy 71/100 System Corruption 28% Temperature Cool (0) Movement Core (50) Location -2/Protoforge Parts ------- > --- POWER (2) -------- (None) > --- PROPULSION (6) --- (None) > --- UTILITY (11) ----- (None) > --- WEAPON (4) ------- (None) > --- INVENTORY (5) ---- Matter Compressor (0) Gravity Neutralizer Smartbomb Launcher Peak State ------------ > --- POWER ------------ Cooled Antimatter Reactor Quantum Reactor > --- PROPULSION ------- Combat Linear Gravjet Combat Linear Gravjet Combat Linear Gravjet Combat Linear Gravjet Combat Linear Gravjet Combat Linear Gravjet > --- UTILITY ---------- Large Storage Unit Advanced Gravity Neutralizer Enhanced Optical Array Advanced Sensor Array Experimental Signal Interpreter Advanced Reaction Control System Advanced Phase Shifter Centrium Light Armor Plating Graphene Brace Advanced Hacking Suite System Mapper > --- WEAPON ----------- Sigix Broadsword Sigix Broadsword > --- INVENTORY -------- Quantum Reactor Combat Antigrav System Combat Antigrav System Combat Linear Gravjet Combat Linear Gravjet Compact Battery Matter Compressor Gravity Neutralizer Advanced Reaction Control System Advanced Phase Shifter Graviton Cannon Smartbomb Launcher Neutron Missile Launcher Z-bomb Delivery System [Rating: 213] Favorites ----------- Power Cooled Ion Engine Engine Cooled Ion Engine Power Core Neutrino Core Reactor Particle Reactor Propulsion Light Treads Treads Light Treads Leg Carbon-fiber Leg Wheel Wheel Hover Unit Combat Linear Gravjet Utility Huge Storage Unit Device Drone Bay Storage Huge Storage Unit Processor Machine Analyzer Hackware Improved Hacking Suite Protection Centrium Light Armor Plating Artifact Phase Armor Weapon Enhanced Autogun Energy Gun Cooled Plasma Rifle Energy Cannon Enhanced Nova Cannon Ballistic Gun Enhanced Autogun Ballistic Cannon Improved Light Cannon Launcher Fusion Bomb Launcher Special Weapon LU-1G1's Laser Shovel Impact Weapon Great Maul Slashing Weapon Axe Piercing Weapon Enhanced Force Lance Build | -11 -10 -9 -8 -8 -8 -8 -6 -6 -6 -6 -5 -5 -5 -5 -5 -5 -4 -4 -3 -3 -2 -2 -2 ------- Run | Yrd Mat Mat Mat Sto Rec Scr Fac Low Low Dat Pro Fac Ext Cet Arc Hub Fac Arm Res Qua Res Tes Frg Slots Evolved 16 | . . 2 2 . . . 4 . . . . 2 . . . . 2 . 2 . 2 . . Power 1 | . . . . . . . . . . . . 1 . . . . . . . . . . . Propulsion 4 | . . 1 1 . . . . . . . . 1 . . . . . . 1 . . . . Utility 9 | . . . 1 . . . 4 . . . . . . . . . 2 . 1 . 1 . . Weapon 2 | . . 1 . . . . . . . . . . . . . . . . . . 1 . . Parts Attached 331 | 7 7 39 17 16 4 9 24 4 9 . 7 40 20 10 . 10 33 27 22 8 3 13 2 Power 48 | 1 1 7 3 1 . . 2 . 1 . . 6 6 2 . 2 4 3 3 2 1 3 . Engine 18 | 1 1 6 3 1 . . 1 . . . . 2 3 . . . . . . . . . . Core 13 | . . 1 . . . . 1 . 1 . . 3 3 . . . 2 1 . . . 1 . Reactor 17 | . . . . . . . . . . . . 1 . 2 . 2 2 2 3 2 1 2 . Propulsion 95 | 2 3 15 4 3 2 6 5 2 2 . 1 13 5 2 . 2 15 10 1 1 . . 1 Treads 46 | . . 8 4 3 2 3 5 1 . . 1 6 5 2 . 2 4 . . . . . . Leg 23 | 2 3 4 . . . . . . 1 . . 5 . . . . 3 5 . . . . . Wheel 12 | . . 3 . . . 3 . 1 1 . . 2 . . . . 2 . . . . . . Hover 14 | . . . . . . . . . . . . . . . . . 6 5 1 1 . . 1 Flight . | . . . . . . . . . . . . . . . . . . . . . . . . Utility 102 | 2 1 6 6 3 2 2 12 1 3 . 5 12 6 2 . 3 6 7 13 3 1 6 . Device 51 | 1 . 3 1 2 2 . 5 1 3 . 2 7 6 1 . 2 2 4 7 . . 2 . Storage 8 | 1 1 1 . . . 1 1 . . . . 1 . . . . . . 2 . . . . Processor 13 | . . 1 1 1 . . 2 . . . 1 2 . . . . . 1 1 1 . 2 . Hackware 7 | . . . . . . 1 2 . . . . 1 . . . . . . 1 . 1 1 . Protection 22 | . . 1 4 . . . 2 . . . 2 1 . 1 . 1 4 2 2 1 . 1 . Artifact 1 | . . . . . . . . . . . . . . . . . . . . 1 . . . Weapon 86 | 2 2 11 4 9 . 1 5 1 3 . 1 9 3 4 . 3 8 7 5 2 1 4 1 Energy Gun 9 | . . 2 . 1 . . . . . . . 3 . 1 . . 1 1 . . . . . Energy Cannon 6 | . . . . . . . . . . . . 1 . . . . 1 1 . 1 . 2 . Ballistic Gun 36 | 2 2 4 3 4 . . 2 1 3 . 1 2 2 3 . 1 4 2 . . . . . Ballistic Cannon 6 | . . 1 . 2 . . . . . . . . . . . 1 1 . . . . 1 . Launcher 13 | . . . . 1 . . 3 . . . . 1 . . . 1 1 3 1 . . 1 1 Special Weapon 4 | . . 1 . . . 1 . . . . . 1 . . . . . . 1 . . . . Impact Weapon 1 | . . . . 1 . . . . . . . . . . . . . . . . . . . Slashing Weapon 7 | . . 3 1 . . . . . . . . . 1 . . . . . . 1 1 . . Piercing Weapon 4 | . . . . . . . . . . . . 1 . . . . . . 3 . . . . Special Melee Weapon . | . . . . . . . . . . . . . . . . . . . . . . . . Unidentified Prototypes 34 | . . . . 3 . 1 . . . . . 4 . 4 . 1 2 . 3 5 1 10 . Corrupted Parts 5 | . . . . . . 1 1 . . . . . . . . . 3 . . . . . . System Corruption 23 | . . . . . . 1 2 . . . . . . . . . 20 . . . . . . Parts Lost 129 | . 7 8 8 1 . 1 6 3 10 . 8 5 5 . . 7 35 3 . . . 2 20 Power 18 | . 1 3 1 . . . 1 . 1 . 1 . 1 . . 3 3 . . . . . 3 Propulsion 46 | . 3 4 4 . . 1 3 1 3 . 3 2 2 . . 1 12 1 . . . . 6 Utility 36 | . 1 . 2 1 . . . 1 3 . 4 . 2 . . 1 12 . . . . 1 8 Weapon 29 | . 2 1 1 . . . 2 1 3 . . 3 . . . 2 8 2 . . . 1 3 Highest Loss Streak 32 | . 7 5 6 1 . 1 3 2 10 . 7 1 2 . . 6 32 2 . . . 1 18 To Critical Strikes 1 | . . . . . . . . 1 . . . . . . . . . . . . . . . Average Backups 20 | 4 9 18 19 19 19 23 24 24 21 24 20 23 22 22 22 22 18 4 11 13 13 13 12 Power . | 1 1 1 . . 1 . . 1 . . . . 1 1 2 1 . . . . 1 1 . Propulsion 4 | 2 4 6 4 5 5 7 4 2 3 4 3 2 3 3 3 3 4 . 1 4 4 4 3 Utility 8 | . 1 6 6 6 7 9 11 13 10 11 10 11 10 10 10 9 8 . 6 5 4 4 4 Weapon 5 | 1 3 5 7 7 5 5 5 5 4 7 5 6 4 5 5 5 5 2 2 3 4 4 3 Tool/Special . | . . . . . . . . . . . . . . . . . . . . . . . . Unused Backups 94 | . 1 12 6 6 6 7 6 1 . . . 10 5 8 . 2 8 2 7 1 . . 6 Power 9 | . 1 2 1 . . . 1 . . . . . 2 1 . . 1 . . . . . . Propulsion 26 | . . 3 . 1 2 . 1 . . . . 4 2 3 . 1 4 1 1 . . . 3 Utility 40 | . . 5 2 3 4 4 3 1 . . . 4 1 2 . . 1 1 5 1 . . 3 Weapon 18 | . . 2 3 2 . 2 1 . . . . 2 . 2 . 1 2 . 1 . . . . Tool/Special 1 | . . . . . . 1 . . . . . . . . . . . . . . . . . Average Slot Usage (%) 93 | . 92 99 98 99 100 93 91 93 97 80 88 95 93 88 88 83 76 76 98 99 86 90 82 Engine 5 | . 13 10 9 9 9 9 2 6 . . . . 4 . . . . . . . . . . Core 1 | . . . . . . . 3 . 5 6 2 4 5 5 1 . 2 1 . . . . . Reactor 1 | . . . . . . . . . . . . 2 . 4 9 10 6 8 9 9 8 8 6 Treads 19 | . . 23 35 36 36 23 25 26 14 13 9 11 22 17 17 17 13 . . . . . . Leg 2 | . 26 1 . . . . . . 1 . . 16 . . . . . 14 . . . . . Wheel 3 | . . 7 . . . 12 . . 9 13 8 . . . . . . . . . . . . Hover 3 | . . . . . . . . . . . . . . . . . 1 9 28 28 26 26 24 Device 10 | . 8 5 7 7 9 3 14 12 11 13 12 14 10 9 5 4 11 18 29 23 21 20 17 Storage 7 | . 14 11 9 9 9 8 6 6 6 6 6 5 5 5 5 5 4 . 2 4 4 4 3 Processor 9 | . . 3 1 6 9 5 12 13 13 13 16 12 17 17 17 17 11 3 8 9 8 8 7 Hackware 3 | . . . . . . 2 3 6 6 6 6 5 5 5 5 5 4 . . 4 4 8 7 Protection 1 | . . . 8 3 . . 1 . 5 6 3 . . . 5 5 5 7 3 3 4 4 3 Energy Gun 1 | . . 5 . . . . . . . . . . 10 3 . . . 1 . . . . . Ballistic Gun 16 | . 27 18 4 22 27 26 19 20 20 . 19 11 5 12 17 11 11 3 2 . . . . Slashing Weapon 1 | . . 5 22 . . . . . . . . . . . . . . . . . 7 7 6 Peak Build Rating 213 | 7 8 25 27 33 34 43 71 62 64 59 64 99 96 131 134 137 147 134 162 181 204 213 213 Average Rating 67 | 5 7 15 24 30 33 32 64 60 62 51 57 80 93 120 133 130 122 93 151 168 199 206 188 On Entrance 80 | . 7 7 20 27 33 33 43 63 61 64 51 53 86 96 131 134 100 48 118 160 181 204 213 Avg Prop Armor Cover (%) 9 | . . 17 . . . 7 . . 9 13 9 7 . . . . 10 7 . . . 1 9 Naked Turns 8 | . . . . . . . . . . . . . . . . . . . . . . . 8 Heaviest Build 221 | 13 28 60 67 69 63 218 221 109 115 100 115 144 137 144 150 159 150 73 111 96 89 95 89 Greatest Support 187 | 20 20 63 83 80 80 80 85 85 72 20 20 144 150 187 187 187 187 119 96 96 96 100 100 Greatest Overweight (x) 21 | 1 2 5 1 . . 21 2 1 5 4 10 6 1 1 . . 11 1 1 . . 1 2 Average Overweight (x) 1 | . . 2 . . . 2 1 1 4 4 7 1 . . . . . . . . . . . Largest Inventory Capacity 35 | 8 15 20 20 20 20 35 35 25 25 25 25 25 25 25 25 25 25 5 15 15 15 15 15 Average Capacity 22 | 7 14 19 20 20 20 27 25 25 25 25 25 25 25 25 25 25 22 5 11 15 15 15 14 Most Carried 35 | 8 13 20 20 20 20 35 33 25 25 25 25 25 25 25 25 25 25 5 15 15 15 15 15 Average Carried 20 | 4 9 18 19 19 19 23 24 24 20 24 20 23 24 24 24 24 19 4 11 14 14 14 13 Final Capacity 35 | 8 15 20 20 20 20 35 25 25 25 25 25 25 25 25 25 25 5 5 15 15 15 15 5 Final Carried 35 | 8 11 20 20 20 20 35 25 25 22 25 19 24 25 25 25 21 5 4 15 15 15 15 4 Scrap Suit Usage (%) 3 | . . . . . . . 66 5 . . . . . . . . . . . . . . . Parts Cannibalized 1 | . . . . . . . 1 . . . . . . . . . . . . . . . . Class Distribution -------------------- 24% | Commander-Gunner 14% | Scavenger-Gunner 10% | Scavenger-Tank 8% | Scavenger-Skirmisher 7% | Scavenger-Mutant 7% | Commander-Tank 6% | Mutant 5% | Gunner 4% | Hacker-Scout 3% | Scout Dominant Class ---------------- Mutant | -10/Materials Gunner | -9/Materials Scavenger-Mutant | -8/Materials Scavenger-Gunner | -8/Storage Scavenger-Gunner | -8/Recycling Commander-Gunner | -8/Scraptown Commander-Scrapper | -6/Factory Scavenger-Skirmisher | -6/Lower Caves Scavenger-Gunner | -6/Lower Caves Scavenger-Mutant | -6/Data Miner Scavenger-Gunner | -5/Proximity Caves Scavenger-Gunner | -5/Factory Commander-Tank | -5/Extension Commander-Tank | -5/Cetus Commander-Tank | -5/Archives Scavenger-Tank | -5/Hub_04(d) Scavenger-Skirmisher | -4/Factory Scavenger-Tank | -4/Armory Scout | -3/Research Scout | -3/Quarantine Scout | -2/Research Hacker-Scout | -2/Testing Hacker-Scout | -2/Protoforge Resources | -11 -10 -9 -8 -8 -8 -8 -6 -6 -6 -6 -5 -5 -5 -5 -5 -5 -4 -4 -3 -3 -2 -2 -2 ----------- Run | Yrd Mat Mat Mat Sto Rec Scr Fac Low Low Dat Pro Fac Ext Cet Arc Hub Fac Arm Res Qua Res Tes Frg Matter Collected 12571 | 238 195 1115 461 769 513 298 1263 479 313 . 328 1530 790 268 31 635 1102 638 693 44 234 609 25 Remotely 1465 | . . . . . . . 795 . . . . . 78 . . 206 386 . . . . . . Salvage Created 14386 | 36 297 1364 907 899 554 249 1263 191 328 . 272 1595 1232 464 82 620 1880 62 1195 44 234 382 236 Parts 711 | 6 12 74 58 46 23 10 79 9 13 . 24 98 41 28 4 25 85 2 29 2 3 20 20 Haulers Intercepted 20 | . . 5 1 3 . . 1 . . . . 4 . . . . 1 . 4 . . 1 . Recyclers Shooed 21 | . 1 6 . 2 1 . 4 . . . . 1 . . . . 2 . 4 . . . . Parts Field Recycled . | . . . . . . . . . . . . . . . . . . . . . . . . Retrieved Matter . | . . . . . . . . . . . . . . . . . . . . . . . . Parts Self-Destructed 39 | . . . . . . . . 5 11 . 23 . . . . . . . . . . . . Prevented 3 | . . . . . . . . 2 . . 1 . . . . . . . . . . . . Parts Restored . | . . . . . . . . . . . . . . . . . . . . . . . . Kills | -11 -10 -9 -8 -8 -8 -8 -6 -6 -6 -6 -5 -5 -5 -5 -5 -5 -4 -4 -3 -3 -2 -2 -2 ------- Run | Yrd Mat Mat Mat Sto Rec Scr Fac Low Low Dat Pro Fac Ext Cet Arc Hub Fac Arm Res Qua Res Tes Frg Combat Hostiles Destroyed 220 | . 8 28 14 19 11 4 19 1 5 . 7 18 18 7 1 18 21 2 8 . 1 4 6 Melee 18 | . . . 10 1 . . . . . . . . . . . . . 1 . . 1 2 3 Guns 138 | . 8 28 4 12 11 4 14 1 5 . 6 8 12 6 1 4 14 . . . . . . Cannons 12 | . . . . 1 . . . . . . . 5 . . . 4 1 1 . . . . . AOE 42 | . . . . 5 . . 3 . . . 1 5 4 . . 10 1 . 8 . . 2 3 Classes Destroyed 26 | 1 3 8 1 . 1 3 . 2 . . 1 1 . . . 3 1 . . . . 1 . Worker 17 | . . 2 1 . . . 2 . . . . 7 . . . . . . 1 . . 3 1 Builder 20 | . . 1 1 1 1 . 4 . . . . 4 2 . . 1 4 . 1 . . . . Tunneler 4 | 2 . . 2 . . . . . . . . . . . . . . . . . . . . Hauler 20 | . . 5 1 3 . . 1 . . . . 4 . . . . 1 . 4 . . 1 . Recycler 11 | . 1 2 . . . . . . . . . 1 1 . . . 1 . 4 . 1 . . Mechanic 1 | . . 1 . . . . . . . . . . . . . . . . . . . . . Operator 2 | . . 1 1 . . . . . . . . . . . . . . . . . . . . Watcher 7 | . . 2 1 1 . . . . . . . . . 1 . . . . 1 1 . . . Swarmer 36 | . 4 8 . 3 1 . . . . . 4 4 4 . . . . . 4 . . . 4 Cutter 3 | . . . . . . . . . . . . 3 . . . . . . . . . . . Saboteur 2 | . . . . . . . . . . . . . . . . 1 . 1 . . . . . Grunt 78 | . 4 11 7 11 5 . 8 . 3 . . 2 5 . . 11 5 1 4 . . 1 . Brawler 5 | . . . . . . . . . . . . . . . . 2 3 . . . . . . Duelist 5 | . . 1 . . . . . . 1 . . . . . . 1 2 . . . . . . Protector 1 | . . . . . . . . . . . . . . . . 1 . . . . . . . Researcher 1 | . . . . . . . . . . . . . . . . . . . . . . 1 . Sentry 36 | . . 8 5 5 3 . 2 . 1 . . 1 7 . 1 . 2 . . . 1 . . Specialist 1 | . . . . . . . . . . . . . . . . 1 . . . . . . . Hunter 23 | . . . 2 . 1 . 5 1 . . 2 3 1 1 . 1 4 . . . . 2 . Programmer 17 | . . . . . 1 . 4 . . . . 5 . . . . 4 . . . . 1 2 Heavy 1 | . . . . . . . . . . . . . . . . . 1 . . . . . . Behemoth 2 | . . . . . . . . . . . 1 . 1 . . . . . . . . . . Cetus Guard 6 | . . . . . . . . . . . . . . 6 . . . . . . . . . Explorer 1 | . . . . . . 1 . . . . . . . . . . . . . . . . . Scrapper 2 | . . . . . . 2 . . . . . . . . . . . . . . . . . Samaritan 1 | . . . . . . . . 1 . . . . . . . . . . . . . . . Savage 1 | . . . . . . . . 1 . . . . . . . . . . . . . . . Mutant 1 | . . . . . . 1 . . . . . . . . . . . . . . . . . Best Kill Streak 15 | 1 3 7 5 9 3 3 4 1 4 . 3 5 4 4 1 15 11 1 8 1 2 2 3 Combat Bots Only 14 | . 2 6 4 8 3 3 3 1 4 . 3 4 4 3 1 14 6 1 5 . 1 2 3 Max Kills in Single Turn 6 | 1 1 2 1 2 1 1 2 1 1 . 2 4 3 3 1 6 2 1 5 1 1 1 3 Gunslinging 1 | . . . . . . . . . . . 1 1 . 1 . . . . . . . . . Exploded 6 | . . . . 2 . . 2 . . . 1 4 3 . . 6 1 . 3 . . 1 3 Melee 1 | . . . 1 1 . . . . . . . . . . . . . 1 . . 1 1 1 Uniques/NPCs Destroyed . | . . . . . . . . . . . . . . . . . . . . . . . . Combat | -11 -10 -9 -8 -8 -8 -8 -6 -6 -6 -6 -5 -5 -5 -5 -5 -5 -4 -4 -3 -3 -2 -2 -2 -------- Run | Yrd Mat Mat Mat Sto Rec Scr Fac Low Low Dat Pro Fac Ext Cet Arc Hub Fac Arm Res Qua Res Tes Frg Hostile Shots Fired 2529 | . 119 131 88 68 30 45 154 27 91 . 77 169 74 27 7 148 557 56 26 127 4 106 398 Missed 857 | . 32 24 21 23 7 16 39 6 14 . 19 42 17 5 1 30 144 30 16 112 2 60 197 Hits 1672 | . 87 107 67 45 23 29 115 21 77 . 58 127 57 22 6 118 413 26 10 15 2 46 201 Melee 73 | . . 6 . . . 4 . . 5 . . 11 . . . 1 37 1 . . . . 8 Projectile 1599 | . 87 101 67 45 23 25 115 21 72 . 58 116 57 22 6 117 376 25 10 15 2 46 193 AOE 7 | . . . . . . . . . . . . 2 . . . . . 3 . . . . 2 Critical Strikes 102 | . . 3 5 3 2 . 6 1 2 . 3 6 4 6 . 11 33 1 . . . 2 14 Actively Blocked 37 | . . . . . . . . . . . . . . . . . 29 . . . . 2 6 Part Disruptions 5 | . . . . . . . . . . . . 1 . . . 1 1 . . . . . 2 Damage Taken 32460 | . 844 1455 1227 603 364 540 1982 352 1323 . 1159 1713 961 441 109 3242 8706 691 317 161 48 993 5229 Core 4228 | . 201 84 241 84 . 60 213 . 235 . 154 75 109 . . 167 992 85 41 16 . . 1471 Absorbed by Shields 1896 | . . . 99 147 . . . . . . . 601 348 158 39 223 258 . . . . . 23 Reduced by Siege Mode 511 | . . . . . . . . . . . . . . 5 . 78 428 . . . . . . Redirected to Shielding 206 | . . . . . . . . . . . 146 . . . . . 60 . . . . . . Ignored by Resistances 365 | . . . . . . . . . . . . 48 . . . . 317 . . . . . . Regen/Repaired (Parts) 1353 | . . 42 . 13 . . 148 . . . . . . . . . . . . 16 24 483 627 Core Remaining (%) 52 | 100 19 79 . . . 30 . . . . 29 . . . . 64 . 6 . 95 . . . Volleys Fired 634 | 5 48 87 9 44 23 14 57 16 19 . 18 68 49 16 3 30 68 21 18 8 . 5 8 Largest 3 | 2 2 3 3 3 3 3 3 3 3 . 3 3 3 3 3 3 3 3 1 1 . 1 1 Hottest 190 | 40 40 121 81 99 75 75 80 80 90 . 96 153 190 138 105 105 105 165 120 120 . 58 58 Shots Fired 1486 | 10 96 224 21 113 68 42 144 51 57 . 50 143 128 46 9 57 159 29 18 8 . 5 8 Gun 1301 | 10 96 192 21 95 68 42 134 51 57 . 44 104 126 46 9 42 149 10 5 . . . . Cannon 133 | . . 31 . 13 . . . . . . . 36 . . . 11 4 17 5 8 . 1 7 Launcher 49 | . . . . 5 . . 10 . . . 6 2 2 . . 3 6 2 8 . . 4 1 Special 3 | . . 1 . . . . . . . . . 1 . . . 1 . . . . . . . Kinetic 1211 | 10 96 178 21 108 68 42 134 51 57 . 44 88 45 30 9 53 151 13 5 . . 1 7 Thermal 218 | . . 46 . . . . . . . . . 47 81 16 . . 2 13 5 8 . . . Explosive 33 | . . . . 5 . . 4 . . . 2 2 2 . . 3 . 2 8 . . 4 1 Electromagnetic 22 | . . . . . . . 6 . . . 4 5 . . . . 6 1 . . . . . Robot Hit Streak 21 | 2 6 17 15 8 21 5 12 12 20 . 19 8 9 9 2 10 11 3 8 . . 1 . Robot Miss Streak 5 | 2 4 4 2 3 2 5 2 3 3 . 3 4 5 3 2 3 4 5 3 . . 2 1 Penetration Max 1 | . . . 1 . . . . . . . . 1 1 1 . 1 1 . . . . . . Secondary Targets 27 | . 1 4 . . 2 2 2 . 2 . 3 2 2 2 1 1 3 . . . . . . Max Gunslinging Chain 2 | . 1 1 . . 1 1 1 . 1 . 2 1 1 1 1 1 1 . . . . . . Shots Hit Robots 986 | 4 59 144 47 79 48 19 100 34 46 . 33 85 68 29 4 32 96 9 17 2 6 18 7 Core Hits 646 | 4 20 71 25 39 21 10 64 11 13 . 16 65 42 18 2 111 66 8 27 1 2 7 3 Critical Kills 19 | . . . . . . . . . . . . 4 2 2 1 2 8 . . . . . . Critical Parts Destroyed 21 | . . . . 1 . . 1 . . . 1 4 2 2 . 4 6 . . . . . . Critical Strikes 72 | . . 2 4 2 . . 1 . . . 1 15 12 6 1 6 15 1 2 . 2 2 . Burn 12 | . . . . . . . . . . . . 2 8 2 . . . . . . . . . Destroy 39 | . . . . . . . 1 . . . 1 8 4 4 1 6 14 . . . . . . Blast 4 | . . 2 . . . . . . . . . . . . . . 1 1 . . . . . Corrupt 1 | . . . . . . . . . . . . 1 . . . . . . . . . . . Smash 1 | . . . . 1 . . . . . . . . . . . . . . . . . . . Sever 9 | . . . 4 1 . . . . . . . . . . . . . . . . 2 2 . Impale 6 | . . . . . . . . . . . . 4 . . . . . . 2 . . . . Melee Attacks 226 | . . 2 52 22 . 2 . . . . . 13 . . . . . . 25 25 7 50 28 Impact 21 | . . . . 19 . 2 . . . . . . . . . . . . . . . . . Slashing 143 | . . 2 52 3 . . . . . . . . . . . . . . . 1 7 50 28 Piercing 62 | . . . . . . . . . . . . 13 . . . . . . 25 24 . . . Sneak Attacks 32 | . . 1 7 3 . . . . . . . 8 . . . . . . 6 . 1 5 1 Combat Hostiles . | . . . . . . . . . . . . . . . . . . . . . . . . Follow-up Attacks 10 | . . . 5 . . . . . . . . . . . . . . . . . 2 1 2 Damage Inflicted 34936 | 36 537 2410 1711 2172 1023 392 2429 622 858 . 980 3065 2119 869 103 4081 3816 515 2487 134 667 2802 1108 Guns 16735 | 36 523 2037 346 1084 909 392 1750 622 858 . 676 1284 1776 869 103 718 2528 117 107 . . . . Cannons 1891 | . . 250 . 199 . . . . . . . 516 . . . 536 115 151 124 . . . . Explosions 9440 | . . . . 522 . . 660 . . . 304 683 302 . . 2827 1173 247 1462 . . 880 380 Melee 6619 | . . 96 1365 344 . . . . . . . 582 . . . . . . 794 134 667 1922 715 Ramming 251 | . 14 27 . 23 114 . 19 . . . . . 41 . . . . . . . . . 13 Kinetic 15639 | 36 523 1858 346 1283 909 392 1750 622 858 . 676 953 654 509 103 1254 2619 187 107 . . . . Thermal 3018 | . . 429 . . . . . . . . 46 844 1122 360 . 17 24 52 124 . . . . Explosive 7553 | . . . . 522 . . 287 . . . 197 594 302 . . 2682 . 247 1462 . . 880 380 Electromagnetic 1856 | . . . . . . . 373 . . . 61 92 . . . 128 1173 29 . . . . . Impact 199 | . . . . 199 . . . . . . . . . . . . . . . . . . . Slashing 4910 | . . 96 1365 145 . . . . . . . . . . . . . . . . 667 1922 715 Piercing 1510 | . . . . . . . . . . . . 582 . . . . . . 794 134 . . . Highest Corruption 86 | . 1 . 4 5 5 1 5 6 6 6 6 4 4 4 4 19 86 86 . . . 4 28 Average Corruption 8 | . 1 . 4 4 5 1 3 5 6 6 6 3 4 4 4 5 23 86 . . . 3 9 Corruption Purged . | . . . . . . . . . . . . . . . . . . . . . . . . Corruption Blocked . | . . . . . . . . . . . . . . . . . . . . . . . . Effects 379 | . 6 . 6 31 43 . 23 27 10 3 30 20 38 14 2 12 28 50 . . . 20 16 Message Errors 94 | . 1 . 1 11 7 . 8 5 2 1 11 7 16 3 . 1 6 6 . . . 6 2 Matter Fused 65 | . 2 . 2 1 10 . 3 5 2 . 7 6 6 2 . 3 5 4 . . . 2 5 Heat Flow Errors 50 | . 1 . . 2 8 . 3 5 1 1 4 3 4 3 2 . 1 7 . . . 5 . Energy Discharges 45 | . 2 . 2 5 10 . 4 2 . . 1 1 1 2 . 3 6 3 . . . 2 1 Parts Rejected 6 | . . . . . . . 2 1 . . . . . 1 . . 1 1 . . . . . Parts Fused 6 | . . . . . . . . 1 2 . . 1 1 . . . . . . . . 1 . Data Loss (minor) 35 | . . . 1 5 4 . . 4 2 . 3 1 1 1 . 1 1 8 . . . 1 2 Data Loss (major) 12 | . . . . . 3 . 1 . . 1 1 . 4 . . . . . . . . 1 1 Misfires 17 | . . . . 4 1 . 1 3 . . 2 . 2 2 . . . 2 . . . . . Alerts 9 | . . . . . . . . 1 1 . 1 . 1 . . 2 . 1 . . . 2 . Misdirections 24 | . . . . . . . . . . . . . . . . . 7 12 . . . . 5 Weapon Failures 16 | . . . . 3 . . 1 . . . . 1 2 . . 2 1 6 . . . . . Overload Shots 24 | . . . . . . . . . . . . 5 12 7 . . . . . . . . . Effects 1 | . . . . . . . . . . . . 1 . . . . . . . . . . . Heat Surge 1 | . . . . . . . . . . . . 1 . . . . . . . . . . . Overflow Damage 1560 | . . . 77 103 4 . 19 . . . 11 138 . . . . 32 . 198 22 156 426 374 Projectiles 22 | . . . . . . . . . . . . . . . . . 10 . 12 . . . . Explosions 232 | . . . . . . . 19 . . . 11 36 . . . . 22 . 35 . . 9 100 Melee 1306 | . . . 77 103 4 . . . . . . 102 . . . . . . 151 22 156 417 274 Knockbacks 7 | . . 1 . 2 1 . . . . . . . . . . . 1 2 . . . . . Impact 1 | . . . . . 1 . . . . . . . . . . . . . . . . . . Kinetic 6 | . . 1 . 2 . . . . . . . . . . . . 1 2 . . . . . Secondary . | . . . . . . . . . . . . . . . . . . . . . . . . Self-Inflicted Damage 603 | . . . . 19 . . 24 . . . 9 20 . . . 417 99 9 . . . . 6 Shots 20 | . . . . 1 . . 1 . . . 1 1 . . . 12 3 1 . . . . . Rammed 22 | . . 4 . 2 11 . 2 . . . . . 2 . . . . . . . . . 1 Targets Rammed 27 | . 3 6 . 2 11 . 2 . . . . . 2 . . . . . . . . . 1 Kicked 4 | . 3 1 . . . . . . . . . . . . . . . . . . . . . Crushed 1 | . . 1 . . . . . . . . . . . . . . . . . . . . . Highest Temperature 395 | . 300 307 103 262 241 118 244 233 308 95 253 395 255 228 197 332 389 280 202 45 87 341 . Average Temperature 79 | . 105 79 41 79 71 50 55 72 117 54 57 100 62 72 89 92 104 96 70 19 35 70 . Received Heat Transfer 4862 | . 288 474 488 286 189 219 301 . 525 . 72 150 164 12 12 568 501 112 42 9 . 72 378 Effects 21 | . 1 . . 1 2 . . 1 1 . 1 2 3 . . . 3 3 . . . 3 . Shutdowns 3 | . . . . . . . . . . . . 2 . . . . 1 . . . . . . Energy Bleed 6 | . 1 . . 1 . . . . . . 1 . . . . . 2 . . . . 1 . Interference 10 | . . . . . 2 . . 1 . . . . 3 . . . . 3 . . . 1 . Damage (minor) 2 | . . . . . . . . . 1 . . . . . . . . . . . . 1 . Siege Activations 6 | . . . . . . . . . . . . . . 1 . 2 3 . . . . . . Total Turns 90 | . . . . . . . . . . . . . . 10 . 14 66 . . . . . . Longest Duration 28 | . . . . . . . . . . . . . . 10 . 9 28 . . . . . . Martial Activations . | . . . . . . . . . . . . . . . . . . . . . . . . Shielding Activations . | . . . . . . . . . . . . . . . . . . . . . . . . Robots Disrupted . | . . . . . . . . . . . . . . . . . . . . . . . . Combat Hostiles . | . . . . . . . . . . . . . . . . . . . . . . . . Robots Corrupted 10 | . . . . 2 1 . 2 . . . . . . . . . 5 . . . . . . Combat Hostiles 7 | . . . . . . . 2 . . . . . . . . . 5 . . . . . . Parts Fried 11 | . . . . 1 1 . 4 . . . . 2 . . . . 3 . . . . . . Impact Corruptions 4 | . . . . 3 1 . . . . . . . . . . . . . . . . . . Robots Melted 4 | . . . . . . . . . . . . 1 2 1 . . . . . . . . . Combat Hostiles 3 | . . . . . . . . . . . . . 2 1 . . . . . . . . . Parts Melted 29 | . . 1 . . . 3 . . . . . 4 20 1 . . . . . . . . . Heat Transferred 6333 | . . 1036 . . . . . . . . 50 780 3350 845 . 50 37 74 111 . . . . Parts Sabotaged 4 | . . . . . . . . . . . . . . . . . . 4 . . . . . Parts Stolen . | . . . . . . . . . . . . . . . . . . . . . . . . Parts Stripped . | . . . . . . . . . . . . . . . . . . . . . . . . Power Chain Reactions 3 | . . . . . . . . . . . 1 1 . . . 1 . . . . . . . Alert | -11 -10 -9 -8 -8 -8 -8 -6 -6 -6 -6 -5 -5 -5 -5 -5 -5 -4 -4 -3 -3 -2 -2 -2 ------- Run | Yrd Mat Mat Mat Sto Rec Scr Fac Low Low Dat Pro Fac Ext Cet Arc Hub Fac Arm Res Qua Res Tes Frg Maximum Alert Level 5 | . . 1 . 1 . . 1 . . . . 2 4 3 2 5 4 2 2 1 . 1 1 Low Security (%) 47 | 100 100 54 100 5 100 . 81 . . . . 45 6 . . 3 . . . 81 100 49 44 Level 1 29 | . . 45 . 94 . . 18 . . . . 49 42 . 22 6 . . 23 18 . 50 55 Level 2 8 | . . . . . . . . . . . . 4 11 . 77 9 . 100 76 . . . . Level 3 6 | . . . . . . . . . . . . . 24 99 . 32 3 . . . . . . Level 4 8 | . . . . . . . . . . . . . 15 . . 32 96 . . . . . . Level 5 . | . . . . . . . . . . . . . . . . 3 . . . . . . . High Security . | . . . . . . . . . . . . . . . . 11 . . . . . . . Max Security . | . . . . . . . . . . . . . . . . . . . . . . . . Peak Influence 2004 | 5 48 361 156 370 147 . 270 . . . . 491 1301 878 513 2004 1239 650 520 287 119 369 391 Initial 1100 | . . 3 134 31 127 . . . . . . . 235 729 328 168 1100 570 293 265 119 65 164 Average 309 | . 10 156 81 291 23 . 85 . . . . 180 570 781 451 1063 1162 597 434 159 106 162 238 Influence Increases 13440 | 10 206 883 473 1002 301 . 606 45 110 . 227 956 1906 427 215 2394 843 341 527 354 38 829 747 Destroy 0b10 Robot/C 5660 | . 160 560 280 540 220 . 380 20 100 . 160 420 820 180 80 840 420 80 160 . 20 100 120 Destroy 0b10 Robot/NC 450 | 10 5 70 35 25 5 . 35 . . . . 80 40 10 . 15 30 . 55 5 5 20 5 Destroy Leader 1200 | . 40 164 94 158 . . 122 10 10 . 30 128 96 10 . 142 92 20 30 2 10 22 20 Allied During Kill 1937 | . . . . 86 5 . 4 . . . 22 58 803 200 80 665 . 14 . . . . . Successful Hack 606 | . . 8 12 22 30 . 5 . . . . 12 16 . . . 24 . 69 103 . 114 191 Select Force Hacks 130 | . . . . . 30 . . . . . . . . . . 100 . . . . . . . Disable Machine 765 | . . 75 . 60 . . 15 . . . . 75 45 15 45 135 45 90 15 75 . 75 . Anti-Garrison Action 150 | . . . . . . . . . . . . . . . . 150 . . . . . . . Destroy Structure 1327 | . 1 6 7 51 11 . 45 . . . . 168 86 12 10 302 142 62 168 34 3 108 111 Partial Spotted 90 | . . . . . . . . . . . . 15 . . . . . . . . . 30 45 Lose Combat Pursuer 1125 | . . . 45 60 . . . 15 . . 15 . . . . 45 90 75 30 135 . 360 255 Influence Decreases 13333 | 10 198 572 716 749 630 . 348 303 110 . 227 475 1084 908 554 883 1796 947 614 613 134 653 809 Entered New Map 4523 | . . 5 185 45 202 . . 96 . . . . 246 574 494 315 1018 595 266 207 94 52 129 Time Decay 6093 | 10 152 487 464 474 418 . 273 207 50 . 178 415 568 254 40 198 428 262 318 246 40 381 230 Search Patrol Dispatched 300 | . . . . . . . . . . . . . . . . . . . . . . 200 100 Lost Part 1132 | . 46 80 67 10 . . 60 . 60 . 49 40 50 . . 70 350 30 . . . 20 200 Lost Ally 985 | . . . . 220 10 . 15 . . . . 20 220 80 20 300 . 60 30 10 . . . Purge Threat 300 | . . . . . . . . . . . . . . . . . . . . 150 . . 150 Squads Dispatched 96 | . 2 3 7 7 . . 9 . . . . 12 5 1 . 12 13 7 7 1 . 5 5 Investigation 26 | . 1 2 3 2 . . 2 . . . . 3 2 1 . 4 1 . 3 . . . 2 Extermination 18 | . . . . . . . 3 . . . . 4 . . . . 2 2 . 1 . 4 2 Reinforcement 34 | . 1 1 1 2 . . 4 . . . . 5 3 . . 3 4 4 4 . . 1 1 Assault 9 | . . . . . . . . . . . . . . . . 5 3 1 . . . . . Garrison 9 | . . . 3 3 . . . . . . . . . . . . 3 . . . . . . Intercept . | . . . . . . . . . . . . . . . . . . . . . . . . Searches Triggered 3 | . . . . . . . . . . . . . . . . . . . . . . 2 1 Data Miner Redirects 3 | . . . . . . . . . . . . . . . . 2 1 . . . . . . Construction Impeded 8 | . . . . . . . 3 . . . . 3 . . . . 1 . 1 . . . . Haulers Reinforced 4 | . . . . . . . . . . . . 1 . . . . 1 . 2 . . . . Active Scanning Responses . | . . . . . . . . . . . . . . . . . . . . . . . . Cargo Convoy Interrupts 1 | . . . . . . . . . . . . 1 . . . . . . . . . . . Stealth | -11 -10 -9 -8 -8 -8 -8 -6 -6 -6 -6 -5 -5 -5 -5 -5 -5 -4 -4 -3 -3 -2 -2 -2 --------- Run | Yrd Mat Mat Mat Sto Rec Scr Fac Low Low Dat Pro Fac Ext Cet Arc Hub Fac Arm Res Qua Res Tes Frg Distress Signals 44 | . 1 8 5 5 . . 1 . . . . . 2 2 . . 3 2 7 1 . 1 6 Communications Jammed 10 | . . . . . . . . . . . . 10 . . . . . . . . . . . Distress Signals 10 | . . . . . . . . . . . . 10 . . . . . . . . . . . Times Spotted 532 | . 17 49 34 31 11 19 25 2 5 . 9 28 41 11 3 44 49 34 11 16 1 32 60 Peak Tracking Total 27 | . 6 6 6 6 2 6 4 1 4 . 4 5 4 5 1 18 11 13 3 6 1 12 27 Tactical Retreats 42 | . . . 3 2 . . . 1 . . 1 . . . . 3 3 5 3 4 . 11 6 ECM-based Alert Blocks 1 | . . . . . . . . . . . . . . . . . . . 1 . . . . Traps | -11 -10 -9 -8 -8 -8 -8 -6 -6 -6 -6 -5 -5 -5 -5 -5 -5 -4 -4 -3 -3 -2 -2 -2 ------- Run | Yrd Mat Mat Mat Sto Rec Scr Fac Low Low Dat Pro Fac Ext Cet Arc Hub Fac Arm Res Qua Res Tes Frg Traps Triggered 18 | . 2 2 1 1 . . . . . . . 4 2 . . . 1 . 1 . . . 4 Indirectly . | . . . . . . . . . . . . . . . . . . . . . . . . Trap Hack Attempts . | . . . . . . . . . . . . . . . . . . . . . . . . Triggered . | . . . . . . . . . . . . . . . . . . . . . . . . Disarmed 9 | . . . . . . . . . . . . . . . . . . . . 5 . . 4 Reprogrammed . | . . . . . . . . . . . . . . . . . . . . . . . . Reused . | . . . . . . . . . . . . . . . . . . . . . . . . Traps Extracted . | . . . . . . . . . . . . . . . . . . . . . . . . Installed . | . . . . . . . . . . . . . . . . . . . . . . . . Triggered . | . . . . . . . . . . . . . . . . . . . . . . . . Machines | -11 -10 -9 -8 -8 -8 -8 -6 -6 -6 -6 -5 -5 -5 -5 -5 -5 -4 -4 -3 -3 -2 -2 -2 ---------- Run | Yrd Mat Mat Mat Sto Rec Scr Fac Low Low Dat Pro Fac Ext Cet Arc Hub Fac Arm Res Qua Res Tes Frg Machines Disabled 58 | . . 5 . 4 . 3 1 . . . . 5 6 1 3 10 3 6 1 5 . 5 . Max in Single Turn 5 | . . 1 . 1 . 1 1 . . . . 1 1 1 1 5 1 1 1 1 . 1 . Garrison Access 5 | . . . . . . . . . . . . . . . . 1 . . 2 1 . 1 . Network Hub 3 | . . . . . . . . . . . . . . . . 3 . . . . . . . Machines Repaired . | . . . . . . . . . . . . . . . . . . . . . . . . Machines Dismantled . | . . . . . . . . . . . . . . . . . . . . . . . . Machines Sabotaged 2 | . . . . . . . . . . . . . . . . 2 . . . . . . . Overloaded Fab Kills . | . . . . . . . . . . . . . . . . . . . . . . . . Hacking | -11 -10 -9 -8 -8 -8 -8 -6 -6 -6 -6 -5 -5 -5 -5 -5 -5 -4 -4 -3 -3 -2 -2 -2 --------- Run | Yrd Mat Mat Mat Sto Rec Scr Fac Low Low Dat Pro Fac Ext Cet Arc Hub Fac Arm Res Qua Res Tes Frg Machines Accessed 102 | . 2 6 5 6 8 5 4 1 . 3 . 8 8 1 . 4 4 . 8 10 . 9 10 Terminals 64 | . 2 5 4 5 6 . 1 . . . . 3 7 1 . 4 2 . 4 9 . 4 7 Fabricators 5 | . . . . . . . 1 . . . . 1 . . . . 1 . 1 . . 1 . Repair Stations 5 | . . 1 . 1 . . . . . . . . 1 . . . . . . . . 1 1 Recycling Units 10 | . . . . . 2 . 2 . . . . 3 . . . . 1 . . . . . 2 Scanalyzers 6 | . . . 1 . . . . . . . . 1 . . . . . . 2 . . 2 . Garrison Access 3 | . . . . . . . . . . . . . . . . . . . 1 1 . 1 . Total Hacks 379 | . 4 9 14 11 24 29 14 1 . 24 . 17 19 2 . 6 10 . 28 58 . 43 66 Successful 205 | . . 2 7 7 9 29 6 1 . 24 . 10 6 . . 2 5 . 11 30 . 19 37 Failed 173 | . 4 7 7 4 15 . 8 . . . . 7 13 2 . 4 5 . 17 28 . 23 29 Catastrophic 37 | . 1 2 3 1 1 . . . . . . 2 3 . . 1 2 . 5 7 . 4 5 Database Lockouts 1 | . . . . . . . . . . . . . . . . . . . . . . 1 . Manual 132 | . . 6 7 7 23 . 4 . . . . 7 5 1 . 6 8 . 8 19 . 13 18 Terminals 253 | . 4 8 9 10 20 . 4 . . . . 6 18 2 . 6 8 . 18 57 . 27 56 Fabricators 15 | . . . . . . . 6 . . . . 3 . . . . 1 . 1 . . 4 . Repair Stations 9 | . . 1 . 1 . . . . . . . . 1 . . . . . . . . 4 2 Recycling Units 22 | . . . . . 4 . 4 . . . . 5 . . . . 1 . . . . . 8 Scanalyzers 22 | . . . 5 . . . . . . . . 3 . . . . . . 8 . . 6 . Garrison Access 4 | . . . . . . . . . . . . . . . . . . . 1 1 . 2 . Terminal Hacks 150 | . . 1 2 6 6 29 1 1 . 24 . . 5 . . . 1 . 6 25 . 10 33 Record 53 | . . . . . . 28 . . . 11 . . . . . . . . . 7 . . 7 Part Schematic 15 | . . . . 1 1 . . . . 10 . . 2 . . . . . . . . . 1 Robot Schematic 1 | . . . . . 1 . . . . . . . . . . . . . . . . . . Robot Analysis 9 | . . . . 1 4 . . . . . . . . . . . . . 1 1 . . 2 Prototype ID Bank 7 | . . . . . . . . . . 3 . . . . . . . . . . . 2 2 Open Door 3 | . . . . 2 . . . 1 . . . . . . . . . . . . . . . Level Access Points 2 | . . . . . . . . . . . . . . . . . . . 1 1 . . . Branch Access Points 3 | . . 1 . . . . 1 . . . . . . . . . . . . . . 1 . Emergency Access Points 4 | . . . . . . . . . . . . . . . . . . . . 1 . 1 2 Machine Index 1 | . . . . . . . . . . . . . . . . . . . . . . . 1 Terminal Index 4 | . . . 1 . . . . . . . . . . . . . . . 1 1 . . 1 Recycling Unit Index 1 | . . . . . . . . . . . . . . . . . . . . 1 . . . Alert Level 4 | . . . . . . . . . . . . . . . . . 1 . . 1 . . 2 Unreport Threat 2 | . . . . . . . . . . . . . . . . . . . . 1 . . 1 Locate Traps 7 | . . . 1 . . . . . . . . . 2 . . . . . . 3 . . 1 Disarm Traps 3 | . . . . . . . . . . . . . . . . . . . . 2 . . 1 Dispatch Records 2 | . . . . . . . . . . . . . . . . . . . . 1 . . 1 Maintenance Status 3 | . . . . . . . . . . . . . . . . . . . 1 . . 1 1 Security Status 3 | . . . . . . . . . . . . . . . . . . . . 1 . 1 1 Patrol Status 3 | . . . . . . . . . . . . . . . . . . . . 1 . 1 1 Transport Status 1 | . . . . . . . . . . . . . . . . . . . . 1 . . . Recall Investigation 1 | . . . . . . . . . . . . . . . . . . . . . . . 1 Recall Extermination 1 | . . . . . . . . . . . . . . . . . . . . . . 1 . Recall Reinforcements 1 | . . . . . . . . . . . . . . . . . . . . . . . 1 Hauler Manifests 4 | . . . . 1 . . . . . . . . . . . . . . 1 1 . . 1 Registered Components 5 | . . . . 1 . . . . . . . . . . . . . . 1 1 . 1 1 Registered Prototypes 3 | . . . . . . . . . . . . . 1 . . . . . . . . 1 1 Zone Layout 3 | . . . . . . . . . . . . . . . . . . . . . . . 3 Proto ID Catalog 1 | . . . . . . 1 . . . . . . . . . . . . . . . . . Fabricator Hacks 10 | . . . . . . . 4 . . . . 3 . . . . 1 . 1 . . 1 . Network Status 3 | . . . . . . . . . . . . 1 . . . . 1 . . . . 1 . Load Schematic 3 | . . . . . . . 2 . . . . 1 . . . . . . . . . . . Build 4 | . . . . . . . 2 . . . . 1 . . . . . . 1 . . . . Repair Station Hacks 5 | . . . . . . . . . . . . . . . . . . . . . . 3 2 Scan Component 3 | . . . . . . . . . . . . . . . . . . . . . . 2 1 Repair 2 | . . . . . . . . . . . . . . . . . . . . . . 1 1 Recycling Unit Hacks . | . . . . . . . . . . . . . . . . . . . . . . . . Scanalyzer 13 | . . . 5 . . . . . . . . 3 . . . . . . 2 . . 3 . Insert Component 4 | . . . 2 . . . . . . . . 1 . . . . . . 1 . . . . Analyze 4 | . . . 2 . . . . . . . . 2 . . . . . . . . . . . Retrieve Study 5 | . . . 1 . . . . . . . . . . . . . . . 1 . . 3 . Garrison Access Hacks 3 | . . . . . . . . . . . . . . . . . . . 1 1 . 1 . Seal Access 3 | . . . . . . . . . . . . . . . . . . . 1 1 . 1 . Unauthorized Hacks 24 | . . 1 . 1 3 . 1 . . . . 4 1 . . 2 3 . 1 4 . 1 2 Terminals 13 | . . . . . 1 . . . . . . 1 . . . 2 2 . 1 4 . 1 1 Assimilate 1 | . . . . . . . . . . . . . . . . . . . . 1 . . . Botnet 9 | . . . . . 1 . . . . . . 1 . . . . 2 . 1 2 . 1 1 Operators 1 | . . . . . . . . . . . . . . . . . . . . 1 . . . Sabotage 2 | . . . . . . . . . . . . . . . . 2 . . . . . . . Fabricators . | . . . . . . . . . . . . . . . . . . . . . . . . Repair Stations 3 | . . 1 . 1 . . . . . . . . 1 . . . . . . . . . . Patch 3 | . . 1 . 1 . . . . . . . . 1 . . . . . . . . . . Recycling Units 8 | . . . . . 2 . 1 . . . . 3 . . . . 1 . . . . . 1 Mask 1 | . . . . . 1 . . . . . . . . . . . . . . . . . . Tunnel 1 | . . . . . 1 . . . . . . . . . . . . . . . . . . Fedlink 6 | . . . . . . . 1 . . . . 3 . . . . 1 . . . . . 1 Scanalyzers . | . . . . . . . . . . . . . . . . . . . . . . . . Garrison Access . | . . . . . . . . . . . . . . . . . . . . . . . . Data Cores Recovered 1 | . . . 1 . . . . . . . . . . . . . . . . . . . . Used . | . . . . . . . . . . . . . . . . . . . . . . . . Hacking Detections 70 | . 2 5 5 3 5 . 4 . . . . 5 7 2 . 2 2 . 5 8 . 7 8 Full Trace Events 12 | . 1 . 2 1 4 . 1 . . . . . . 1 . 1 . . . . . . 1 Feedback Events . | . . . . . . . . . . . . . . . . . . . . . . . . Feedback Blocked . | . . . . . . . . . . . . . . . . . . . . . . . . Robot Schematics Acquired 1 | . . . . . 1 . . . . . . . . . . . . . . . . . . Robots Built 1 | . . . . . . . 1 . . . . . . . . . . . . . . . . Authchips 1 | . . . . . . . 1 . . . . . . . . . . . . . . . . Time 58 | . . . . . . . 58 . . . . . . . . . . . . . . . . Total Robot Build Rating 3 | . . . . . . . 3 . . . . . . . . . . . . . . . . Part Schematics Acquired 37 | . . . 2 1 1 . 11 2 . 10 3 1 2 . . . . . . . . 3 1 Parts Built 4 | . . . . . . . 1 . . . . 1 . . . . . . 2 . . . . Authchips 2 | . . . . . . . 1 . . . . 1 . . . . . . . . . . . Time 333 | . . . . . . . 25 . . . . 169 . . . . . . 139 . . . . Total Part Build Rating 25 | . . . . . . . 1 . . . . 6 . . . . . . 18 . . . . Part Studies Acquired 5 | . . . 1 . . . . . . . . . . . . . . . 1 . . 3 . Parts Repaired 2 | . . . . . . . . . . . . . . . . . . . . . . 1 1 Time 125 | . . . . . . . . . . . . . . . . . . . . . . 51 74 Parts Recycled . | . . . . . . . . . . . . . . . . . . . . . . . . Recycled Matter . | . . . . . . . . . . . . . . . . . . . . . . . . Retrieved Matter . | . . . . . . . . . . . . . . . . . . . . . . . . Retrieved Components . | . . . . . . . . . . . . . . . . . . . . . . . . Parts Scanalyzed 3 | . . . 2 . . . . . . . . 1 . . . . . . . . . . . Part Schematics Acquired 3 | . . . 2 . . . . . . . . 1 . . . . . . . . . . . Parts Damaged . | . . . . . . . . . . . . . . . . . . . . . . . . Bothacking | -11 -10 -9 -8 -8 -8 -8 -6 -6 -6 -6 -5 -5 -5 -5 -5 -5 -4 -4 -3 -3 -2 -2 -2 ------------ Run | Yrd Mat Mat Mat Sto Rec Scr Fac Low Low Dat Pro Fac Ext Cet Arc Hub Fac Arm Res Qua Res Tes Frg Used RIF Installer . | . . . . . . . . . . . . . . . . . . . . . . . . Robots Hacked . | . . . . . . . . . . . . . . . . . . . . . . . . Non-combat . | . . . . . . . . . . . . . . . . . . . . . . . . Combat . | . . . . . . . . . . . . . . . . . . . . . . . . Robot Hacks Applied . | . . . . . . . . . . . . . . . . . . . . . . . . Relay Couplers Released 6 | . . . . . . . 4 . . . . . . . . . . . 2 . . . . Machine Destruction 2 | . . . . . . . . . . . . . . . . . . . 2 . . . . Programmers 4 | . . . . . . . 4 . . . . . . . . . . . . . . . . Fabnet Peak Effective % . | . . . . . . . . . . . . . . . . . . . . . . . . Robots Rewired 38 | . . . . . 11 . . . . . . . 24 . . . . 3 . . . . . Allies Hacked 1 | . . . . . . . 1 . . . . . . . . . . . . . . . . Hacks Repelled . | . . . . . . . . . . . . . . . . . . . . . . . . Allies | -11 -10 -9 -8 -8 -8 -8 -6 -6 -6 -6 -5 -5 -5 -5 -5 -5 -4 -4 -3 -3 -2 -2 -2 -------- Run | Yrd Mat Mat Mat Sto Rec Scr Fac Low Low Dat Pro Fac Ext Cet Arc Hub Fac Arm Res Qua Res Tes Frg Total Allies 64 | . . . . 10 11 . 1 . . . 1 . 32 5 . . . 3 . 1 . . . Largest Group 18 | . . . . 10 11 11 8 . . . 1 1 18 18 18 16 . 3 . 1 . . . Highest-Rated Group 1010 | . . . . 173 149 149 102 . . . 96 96 695 1010 1010 820 . 168 . 10 . . . Highest-Rated Ally 159 | . . . . 29 21 21 23 . . . 96 96 159 159 159 96 . 56 . 10 . . . Total Orders 35 | . . . . 4 10 1 6 3 2 . . . . . . . . . 9 . . . . FOLLOW 7 | . . . . . 6 . . . . . . . . . . . . . 1 . . . . AID 2 | . . . . . . . 2 . . . . . . . . . . . . . . . . TUNNEL 1 | . . . . . 1 . . . . . . . . . . . . . . . . . . DROP 1 | . . . . . . 1 . . . . . . . . . . . . . . . . . PICKUP 2 | . . . . . 2 . . . . . . . . . . . . . . . . . . EXPLORE 19 | . . . . 4 1 . 4 3 1 . . . . . . . . . 6 . . . . RETURN 3 | . . . . . . . . . 1 . . . . . . . . . 2 . . . . Ally Attacks 582 | . . . . 71 4 58 2 . . . 4 18 222 49 11 129 . 14 . . . . . Total Damage 12424 | . . . . 814 14 986 52 . . . 96 637 4142 1073 195 3914 . 501 . . . . . Kills 93 | . . . . 8 . 14 . . . . 1 3 32 3 3 27 . 2 . . . . . Allies Corrupted 2 | . . . . . . . 1 . . . . . . . . 1 . . . . . . . Allies Melted 4 | . . . . . . 3 . . . . . 1 . . . . . . . . . . . Intel | -11 -10 -9 -8 -8 -8 -8 -6 -6 -6 -6 -5 -5 -5 -5 -5 -5 -4 -4 -3 -3 -2 -2 -2 ------- Run | Yrd Mat Mat Mat Sto Rec Scr Fac Low Low Dat Pro Fac Ext Cet Arc Hub Fac Arm Res Qua Res Tes Frg Active Infowar (turns) 15182 | 16 432 989 714 . . . 1224 1094 411 126 929 2506 1716 555 96 456 819 370 716 521 88 928 476 Optics 3098 | . . . . . . . . . . . . . . . . . . 369 716 521 88 928 476 Sensors 5477 | . . . . . . . . . . . 770 1392 . . . . 599 349 672 482 88 821 304 Terrain 1479 | . . . . . . . 569 . . . . . . . . 223 687 . . . . . . Structural 68 | . . . . . . . . 68 . . . . . . . . . . . . . . . Seismic 2502 | 16 432 989 714 . . . 81 270 . . . . . . . . . . . . . . . Machine Analysis 9833 | . . . . . . . 1134 1094 411 126 929 2506 1716 555 96 456 810 . . . . . . Jamming 179 | . . . . . . . . . . . . 179 . . . . . . . . . . . ECM 54 | . . . . . . . . . . . . . . . . . . . 54 . . . . Robot Analysis Total 9 | . . . . 1 4 . . . . . . . . . . . . . 1 1 . . 2 Derelict Logs Recovered 3 | . . . . . . . . 1 1 . 1 . . . . . . . . . . . . Drone Launches 17 | . . . . 2 2 . 4 3 1 . . . . . . . . . 5 . . . . Drone Recoveries 5 | . . . . . . . 2 1 1 . . . . . . . . . 1 . . . . Exploration | -11 -10 -9 -8 -8 -8 -8 -6 -6 -6 -6 -5 -5 -5 -5 -5 -5 -4 -4 -3 -3 -2 -2 -2 ------------- Run | Yrd Mat Mat Mat Sto Rec Scr Fac Low Low Dat Pro Fac Ext Cet Arc Hub Fac Arm Res Qua Res Tes Frg Turns Passed 26202 | 119 741 1878 1189 1207 1832 5727 1246 1094 411 126 929 2506 1716 555 96 456 1057 577 716 521 88 928 487 Spaces Moved 15149 | 77 322 888 556 548 1008 3067 475 433 213 89 447 928 794 257 44 196 565 475 990 795 93 1142 747 Core 127 | 10 . . . . . . . . . . . . . . . . 70 . . . . . 47 Treads 6961 | . . 268 556 548 1008 1755 475 433 8 . . 251 794 257 44 196 368 . . . . . . Legs 1370 | 67 322 36 . . . . . . . . . 674 . . . . 2 269 . . . . . Wheels 2646 | . . 584 . . . 1312 . . 205 89 447 3 . . . . 6 . . . . . . Hover 4045 | . . . . . . . . . . . . . . . . . 119 206 990 795 93 1142 700 Flight . | . . . . . . . . . . . . . . . . . . . . . . . . Fastest Speed 24 | 50 120 120 160 160 160 160 160 236 155 140 140 160 160 162 163 163 24 32 45 45 45 45 45 Average Speed 137 | 112 176 155 160 160 160 172 181 236 158 140 189 210 161 163 163 163 123 93 47 45 45 45 47 Slowest Speed 540 | 120 260 240 240 160 160 395 236 236 235 140 230 540 240 245 163 163 470 185 145 45 45 151 260 Overloaded Moves . | . . . . . . . . . . . . . . . . . . . . . . . . Propulsion Burnouts . | . . . . . . . . . . . . . . . . . . . . . . . . Robots Hopped . | . . . . . . . . . . . . . . . . . . . . . . . . Potential Cave-ins . | . . . . . . . . . . . . . . . . . . . . . . . . Cave-ins Triggered 1 | . . . 1 . . . . . . . . . . . . . . . . . . . . Exploration Rate (%) 53 | 4 58 67 35 80 98 96 18 90 41 72 75 20 84 70 71 24 19 30 34 80 4 73 37 Regions Visited 23 Branch Regions 15 Pre-discovered Areas 4 | . . . . 1 1 . . . . 1 . 1 . . . . . . . . . . . Known Exits Taken 12 | . . 1 1 . . . 1 . . . . 1 1 1 1 1 . . 1 1 1 1 . Unknown Exits Taken 11 | 1 1 . . 1 1 1 . 1 1 1 1 . . . . . 1 1 . . . . . Scrap Searched 17 | . . . . . . 10 . 4 1 . 2 . . . . . . . . . . . . Spaces Dug 209 | . . . 6 1 . 10 23 . . . . 29 2 . . 5 51 10 12 18 1 20 21 Terrain Destroyed 795 | . . 3 6 44 . 8 36 1 2 . 33 82 35 3 2 188 76 43 129 18 1 44 41 Melee 67 | . . . 6 1 . . . . . . . 4 . . . . . . 11 10 1 19 15 Projectile 133 | . . 3 . 3 . . . 1 2 . 11 25 18 3 2 16 30 1 2 8 . 1 7 AOE 495 | . . . . 40 . . 13 . . . 22 43 17 . . 169 . 32 116 . . 24 19 Terrain Rammed . | . . . . . . . . . . . . . . . . . . . . . . . . Walls Destroyed . | . . . . . . . . . . . . . . . . . . . . . . . . Machines Disabled . | . . . . . . . . . . . . . . . . . . . . . . . . Actions | -11 -10 -9 -8 -8 -8 -8 -6 -6 -6 -6 -5 -5 -5 -5 -5 -5 -4 -4 -3 -3 -2 -2 -2 --------- Run | Yrd Mat Mat Mat Sto Rec Scr Fac Low Low Dat Pro Fac Ext Cet Arc Hub Fac Arm Res Qua Res Tes Frg Total 19023 | 98 413 1203 763 780 1201 3485 783 482 252 92 490 1310 1128 360 62 273 782 571 1177 911 127 1459 821 Wait 1455 | . 22 89 95 100 49 322 153 10 1 . . 139 18 49 13 8 41 4 56 50 21 198 17 Move 15126 | 76 321 887 555 547 1007 3066 474 432 212 88 446 927 793 256 43 195 564 474 989 794 92 1141 747 Hop . | . . . . . . . . . . . . . . . . . . . . . . . . Pick Up 308 | 9 8 42 24 15 8 42 19 8 7 1 4 30 16 8 1 5 16 7 21 6 1 6 4 Fast Attach 202 | 7 2 18 1 3 . 7 4 1 2 . . 34 9 7 . 3 22 27 18 8 3 25 1 Attach 138 | . 5 13 11 1 . 2 13 3 10 . 10 11 6 . . 6 23 6 4 2 1 4 7 Detach 42 | . 1 4 . . . 3 . . . 2 1 2 1 . . 4 6 3 7 2 . 4 2 Swap 266 | . 1 17 13 24 5 4 41 6 1 . 10 47 16 7 1 15 26 5 13 8 1 5 . Drop 333 | 1 2 38 16 21 10 20 20 6 . 1 1 39 23 17 1 7 16 17 26 15 3 29 4 Fire 634 | 5 48 87 9 44 23 14 57 16 19 . 18 68 49 16 3 30 68 21 18 8 . 5 8 Melee 191 | . . 2 39 22 . 2 . . . . . 13 . . . . . . 23 18 5 42 25 Ram 1 | . . . . . . . . . . . . . . . . . . . . . . . 1 Kick 4 | . 3 1 . . . . . . . . . . . . . . . . . . . . . Crush 22 | . . 5 . 2 11 . 2 . . . . . 2 . . . . . . . . . . Escape Stasis 5 | . . . . . . . . . . . . . . . . . . . . . . . 5 Rewire 292 | . . . . . 87 3 . . . . . . 195 . . . . 7 . . . . . Trap . | . . . . . . . . . . . . . . . . . . . . . . . . Miscellaneous 4 | . . . . 1 1 . . . . . . . . . . . . . 2 . . . . Route ------- -11/Scrapyard -10/Materials (discovered 2 exits: *Mat x2) -9/Materials (discovered 4 exits: *Mat x2 / *Min x2) -8/Materials (discovered 2 exits: *Fac / *Sto) -8/Storage (discovered 2 exits: *Fac / *Rec) -8/Recycling (discovered 2 exits: *Fac / *Scr) -8/Scraptown (discovered 2 exits: *Fac x2) -6/Factory (discovered 2 exits: *Low x2) -6/Lower Caves -6/Lower Caves (discovered 2 exits: *Fac / *Dat) -6/Data Miner -5/Proximity Caves -5/Factory (discovered 2 exits: Upp / *Ext) -5/Extension (discovered 2 exits: *Fac / *Cet) -5/Cetus (discovered 2 exits: *Fac / *Arc) -5/Archives -5/Hub_04(d) -4/Factory -4/Armory -3/Research (discovered 4 exits: *Res x3 / *Qua) -3/Quarantine -2/Research -2/Testing (discovered 3 exits: *Acc / *Sec / *Frg) -2/Protoforge (discovered 1 exit: *Acc) History --------- Turn | Location | Event 6 | -11/Scrapyard | Discovered new exit (range 16) 120 | -11/Scrapyard | Entered Materials 182 | -10/Materials | Discovered new exit (range 10) 306 | -10/Materials | Build established: Mutant 459 | -10/Materials | Discovered new exit (range 3) 716 | -10/Materials | Core integrity fell below 50% 754 | -10/Materials | Core integrity fell below 20% 783 | -10/Materials | Lost 7 parts (1p3n1u2w) 861 | -10/Materials | Entered another Materials area 861 | -9/Materials | Evolved 2 slots: Propulsion x1, Weapon x1 1374 | -9/Materials | Build established: Gunner 1581 | -9/Materials | Discovered new exit (range 10) 1605 | -9/Materials | Identified exit to Materials 1950 | -9/Materials | Lost 5 parts (1p3n1w) 2100 | -9/Materials | Discovered exit to Materials (range 10) 2463 | -9/Materials | Discovered new exit (range 8) 2518 | -9/Materials | Identified exit to Mines 2710 | -9/Materials | Build established: Mutant 2739 | -9/Materials | Entered another Materials area 2739 | -8/Materials | Evolved 2 slots: Propulsion x1, Utility x1 3049 | -8/Materials | Build established: Scavenger-Mutant 3140 | -8/Materials | Discovered new exit (range 8) 3181 | -8/Materials | Identified exit to Factory 3274 | -8/Materials | Discovered new exit (range 14) 3327 | -8/Materials | Identified exit to Storage 3619 | -8/Materials | Crushed by falling debris 3620 | -8/Materials | Build established: Mutant 3672 | -8/Materials | Garrison activated, responded to threat 3733 | -8/Materials | Lost 6 parts (1p4n1u) 3928 | -8/Materials | Entered Storage 4018 | -8/Storage | Destroyed 8 combat bots 4122 | -8/Storage | Learned location of Armory (-4) 4366 | -8/Storage | Assisted by bots powering up and referring to "LRC-V3" 4437 | -8/Storage | Used back door to open Recycling access 4437 | -8/Storage | Discovered new exit (range 5) 4515 | -8/Storage | Core integrity fell below 50% 4617 | -8/Storage | Garrison activated, responded to threat 4674 | -8/Storage | Lost 5 allies 4744 | -8/Storage | Discovered exit to Factory (range 5) 5135 | -8/Storage | Entered Recycling 5136 | -8/Recycling | Met a Zionite searching for Scraptown 5434 | -8/Recycling | Build established: Scavenger-Gunner 5843 | -8/Recycling | Discovered new exit (range 16) 6384 | -8/Recycling | Build established: Commander-Gunner 6926 | -8/Recycling | Scanned before Scraplab entrance 6948 | -8/Recycling | Entered Scraplab 6961 | -8/Recycling | Discovered new exit (range 2) 6967 | -8/Recycling | Entered Scraptown 6967 | -8/Scraptown | Accompanied by 12 allies 6967 | -8/Scraptown | System corruption cleaned by C-Scrubber 7185 | -8/Scraptown | Visited UFD Registry 7185 | -8/Scraptown | Registered with UFD as "Smoothbank" 7196 | -8/Scraptown | Visited Shadow of the Wyrm 7236 | -8/Scraptown | Visited TADAMA 7283 | -8/Scraptown | Visited Cave Peace 7355 | -8/Scraptown | Visited SPCMW 7462 | -8/Scraptown | Discovered new exit (range 5) 8129 | -8/Scraptown | Visited Infowarlord's Domain 8167 | -8/Scraptown | Visited Chapter 10 8206 | -8/Scraptown | Visited Research Penetration Think Tank 8618 | -8/Scraptown | Visited LU-1G1's Boring Crew 8778 | -8/Scraptown | Discovered new exit (range 3) 8830 | -8/Scraptown | Visited DA-N13 Charitable Foundation 8836 | -8/Scraptown | Found DCF Scrap (28 items) 8903 | -8/Scraptown | Visited Scrap Suit Storage 9117 | -8/Scraptown | Visited Supply Room 9157 | -8/Scraptown | Visited Observation Area 9226 | -8/Scraptown | Visited Science Guys 9281 | -8/Scraptown | Received an X-ray algorithm 10539 | -8/Scraptown | Visited Bundlers 10684 | -8/Scraptown | Visited Cyclists 11064 | -8/Scraptown | System corruption cleaned by C-Scrubber 11429 | -8/Scraptown | Found Exp. Terrain Scanner 11476 | -8/Scraptown | Visited Symbiants 11668 | -8/Scraptown | Entered Cyclist Reading Room 11872 | -8/Scraptown | Found Scrap Suit 12113 | -8/Scraptown | Met Optimus 12113 | -8/Scraptown | Accepted into 0bPrime 12388 | -8/Scraptown | Build established: Commander-Mutant 12513 | -8/Scraptown | Civil war broke out across Scraptown 12523 | -8/Scraptown | Found Prototype Special Weapon 12523 | -8/Scraptown | Identified LU-1G1's Laser Shovel 12694 | -8/Scraptown | Entered Factory 12694 | -6/Factory | Accompanied by 7 allies 12694 | -6/Factory | Evolved 4 slots: Utility x4 12740 | -6/Factory | Fabricated Huge Storage Unit (x1) 12803 | -6/Factory | Fabricated M-28 Smith (x1) 12882 | -6/Factory | Tech Extrapolator generated special schematic: Deep Structural Scanner 13093 | -6/Factory | Build established: Commander-Scrapper 13176 | -6/Factory | Discovered new exit (range 30) 13261 | -6/Factory | Identified exit to Lower Caves 13277 | -6/Factory | Lost 7 allies 13480 | -6/Factory | Loaded intel: 8 recycling unit locations 13581 | -6/Factory | Lost 3 parts (1n2w) 13940 | -6/Factory | Entered Lower Caves 14070 | -6/Lower Caves | Build established: Scavenger-Skirmisher 14846 | -6/Lower Caves | Encountered a Warlord checkpoint 14951 | -6/Lower Caves | Discovered new exit (range 10) 15034 | -6/Lower Caves | Entered another Lower Caves area 15073 | -6/Lower Caves | Discovered new exit (range 9) 15087 | -6/Lower Caves | Core integrity fell below 50% 15109 | -6/Lower Caves | Attracted the attention of an 0b10 checkpoint 15139 | -6/Lower Caves | Lost 10 parts (1p3n3u3w) 15255 | -6/Lower Caves | Discovered new exit (range 58) 15292 | -6/Lower Caves | Learned Factory stockpile data 15333 | -6/Lower Caves | Build established: Scavenger-Gunner 15445 | -6/Lower Caves | Entered Data Miner 15447 | -6/Data Miner | Discovered new exit (range 7) 15480 | -6/Data Miner | Met Data Miner 15515 | -6/Data Miner | Learned location of Section 7 (-2) 15515 | -6/Data Miner | Acquired the access code to Warlord's prototype stash 15538 | -6/Data Miner | Received God Mode back door access code from Data Miner 15571 | -6/Data Miner | Entered Proximity Caves 15842 | -5/Proximity Caves | Learned 4 Factory zone layouts 15875 | -5/Proximity Caves | Build established: Scavenger-Skirmisher 15974 | -5/Proximity Caves | Spotted B-75 Beast 16012 | -5/Proximity Caves | Destroyed B-75 Beast 16042 | -5/Proximity Caves | Lost 7 parts (1p2n4u) 16163 | -5/Proximity Caves | Escorted by Enhanced Grunt 16281 | -5/Proximity Caves | Build established: Scavenger-Gunner 16486 | -5/Proximity Caves | Discovered new exit (range 8) 16500 | -5/Proximity Caves | Entered Factory 16500 | -5/Factory | Accompanied by 1 ally 16500 | -5/Factory | Evolved 2 slots: Power x1, Propulsion x1 16501 | -5/Factory | Identified exit to Upper Caves 16833 | -5/Factory | Loaded intel: 8 recycling unit locations 16833 | -5/Factory | Learned location of Protoforge (-2) 17034 | -5/Factory | Build established: Scavenger-Mutant 17350 | -5/Factory | Attached CPS modules to Enhanced Grunt. 17569 | -5/Factory | Fabricated Cld. Plasma Rifle (x1) 17636 | -5/Factory | Build established: Scavenger-Gunner 17787 | -5/Factory | Found Prototype Device 17787 | -5/Factory | Identified Exp. Thermal Shield 18445 | -5/Factory | Discovered new exit (range 16) 18529 | -5/Factory | Cargo convoy interrupted 18701 | -5/Factory | Found Prototype Launcher 18701 | -5/Factory | Identified Rocket Array 18940 | -5/Factory | Spotted B-75 Beast 19000 | -5/Factory | Identified exit to Extension 19006 | -5/Factory | Entered Extension 19010 | -5/Extension | Disrupted transfer network 19107 | -5/Extension | Build established: Scavenger-Tank 19231 | -5/Extension | Rescued a captive Derelict 19371 | -5/Extension | Rescued a captive Derelict 19372 | -5/Extension | Rescued a captive Derelict 19392 | -5/Extension | Rescued a captive Derelict 19393 | -5/Extension | Rescued a captive Derelict 19498 | -5/Extension | Rescued A7 19637 | -5/Extension | Build established: Commander-Tank 19943 | -5/Extension | Spotted B-75 Beast 19948 | -5/Extension | Destroyed B-75 Beast 19963 | -5/Extension | Spotted B-75 Beast 19975 | -5/Extension | Allies destroyed B-75 Beast 20232 | -5/Extension | Rescued a captive Derelict 20277 | -5/Extension | Lost 6 allies 20632 | -5/Extension | Rescued a captive Derelict 20666 | -5/Extension | Discovered new exit (range 10) 20667 | -5/Extension | Discovered new exit (range 6) 20695 | -5/Extension | Identified exit to Factory 20703 | -5/Extension | Identified exit to Cetus 20722 | -5/Extension | Entered Cetus 20722 | -5/Cetus | Accompanied by 17 allies (A7) 20727 | -5/Cetus | Acquired a Cetus Manufacturing Module code from A7 20742 | -5/Cetus | Spotted Cetus Guard 20743 | -5/Cetus | Spotted Cetus Guard 20746 | -5/Cetus | Spotted Cetus Guard 20746 | -5/Cetus | Spotted Cetus Guard 20758 | -5/Cetus | Destroyed Cetus Guard 20763 | -5/Cetus | Allies destroyed Cetus Guard 20765 | -5/Cetus | Destroyed Cetus Guard 20765 | -5/Cetus | Destroyed Cetus Guard 20794 | -5/Cetus | Lost 3 allies 20920 | -5/Cetus | Started Cetus Manufacturing Module 20945 | -5/Cetus | Manufactured an Enhanced Grunt 20951 | -5/Cetus | Escorted A7 to Cetus Mainframe 20970 | -5/Cetus | Manufactured an Enhanced Grunt 20995 | -5/Cetus | Manufactured an Enhanced Grunt 21020 | -5/Cetus | Manufactured an Enhanced Grunt 21045 | -5/Cetus | Manufactured an Enhanced Grunt 21082 | -5/Cetus | Discovered new exit (range 15) 21117 | -5/Cetus | Spotted Cetus Guard 21117 | -5/Cetus | Spotted Cetus Guard 21121 | -5/Cetus | Spotted Cetus Guard 21123 | -5/Cetus | Spotted Cetus Guard 21125 | -5/Cetus | Allies destroyed Cetus Guard 21128 | -5/Cetus | Destroyed Cetus Guard 21128 | -5/Cetus | Destroyed Cetus Guard 21138 | -5/Cetus | Destroyed Cetus Guard 21146 | -5/Cetus | Discovered exit to Factory (range 15) 21156 | -5/Cetus | Met Revision 17 21232 | -5/Cetus | Identified exit to Archives 21277 | -5/Cetus | Entered Archives 21277 | -5/Archives | Accompanied by 18 allies (A7) 21282 | -5/Archives | Received a hacking code to weaken MAIN.C 21331 | -5/Archives | Discovered new exit (range 15) 21355 | -5/Archives | Identified exit to Hub_04(d) 21373 | -5/Archives | Entered Hub_04(d) 21373 | -5/Hub_04(d) | Accompanied by 16 allies 21432 | -5/Hub_04(d) | Lost 7 allies 21471 | -5/Hub_04(d) | Found Prototype Launcher 21471 | -5/Hub_04(d) | Identified Tesla Bomb Launcher 21476 | -5/Hub_04(d) | Found Tesla Bomb Launcher 21481 | -5/Hub_04(d) | Found Tesla Bomb Launcher 21601 | -5/Hub_04(d) | Attached CPS modules to H-71 Marshal. 21609 | -5/Hub_04(d) | Discovered exit to Factory (range 8) 21665 | -5/Hub_04(d) | Spotted B-75 Beast 21673 | -5/Hub_04(d) | First assault squad dispatched 21685 | -5/Hub_04(d) | Allies destroyed B-75 Beast 21707 | -5/Hub_04(d) | Build established: Scavenger-Tank 21723 | -5/Hub_04(d) | Network Hub disabled 21733 | -5/Hub_04(d) | Network Hub disabled 21753 | -5/Hub_04(d) | Spotted Lightning 21753 | -5/Hub_04(d) | Spotted Lightning 21757 | -5/Hub_04(d) | Network Hub disabled 21759 | -5/Hub_04(d) | Spotted Lightning 21763 | -5/Hub_04(d) | Incoming investigation squad redirected 21770 | -5/Hub_04(d) | System corruption reached 10% 21775 | -5/Hub_04(d) | Incoming assault squad redirected 21775 | -5/Hub_04(d) | High security lockdown imminent 21788 | -5/Hub_04(d) | Lost 3 allies 21800 | -5/Hub_04(d) | Destroyed 14 combat bots 21829 | -5/Hub_04(d) | Entered Factory 21829 | -4/Factory | Evolved 2 slots: Utility x2 21830 | -4/Factory | Lost 6 parts (3p1n2w) 22104 | -4/Factory | Loaded intel: 8 recycling unit locations 22124 | -4/Factory | Incoming investigation squad redirected 22230 | -4/Factory | Garrison activated, responded to threat 22329 | -4/Factory | First assault squad dispatched 22642 | -4/Factory | System corruption reached 10% 22684 | -4/Factory | System corruption reached 30% 22743 | -4/Factory | Core integrity fell below 50% 22786 | -4/Factory | Core integrity fell below 20% 22806 | -4/Factory | Lost 32 parts (2p10n12u8w) 22882 | -4/Factory | Discovered new exit (range 12) 22886 | -4/Factory | Entered Armory 22887 | -4/Armory | Met VL-GR5, who suggested a friendly competition 22890 | -4/Armory | Found Fusion Bomb Launcher 22895 | -4/Armory | Found Fusion Bomb Launcher 22954 | -4/Armory | Found Fusion Bomb Launcher 22999 | -4/Armory | Found Fusion Bomb Launcher 23070 | -4/Armory | Lost the competition with VL-GR5 23334 | -4/Armory | VL-GR5 did not survive their latest romp through Armory 23386 | -4/Armory | First assault squad dispatched 23389 | -4/Armory | Spotted B-86 Titan 23462 | -4/Armory | Discovered new exit (range 3) 23463 | -4/Armory | Entered Research 23463 | -3/Research | Evolved 2 slots: Propulsion x1, Utility x1 23575 | -3/Research | Found Exp. Signal Interpreter 23663 | -3/Research | Revision forces began assault on 0b10 23734 | -3/Research | Found Exp. Signal Interpreter 23735 | -3/Research | Found Exp. Signal Interpreter 23754 | -3/Research | Identified exit to Research 23764 | -3/Research | Found Adv. Powered Armor 23767 | -3/Research | Found Adv. Powered Armor 23770 | -3/Research | Found Adv. Powered Armor 23886 | -3/Research | Spotted B-86 Titan 24078 | -3/Research | Fabricated Cmb. Linear Gravjet (x2) 24159 | -3/Research | Discovered new exit (range 9) 24162 | -3/Research | Identified exit to Quarantine 24163 | -3/Research | Research terminal network offline 24172 | -3/Research | Build established: Scout 24179 | -3/Research | Entered Quarantine 24189 | -3/Quarantine | Found Alien Energy Cannon 24189 | -3/Quarantine | Identified Core Cannon 24239 | -3/Quarantine | Found Alien Artifact 24242 | -3/Quarantine | Identified Terrabomb 24242 | -3/Quarantine | Used Terrabomb 24286 | -3/Quarantine | Found Alien Artifact 24286 | -3/Quarantine | Identified Phase Armor 24638 | -3/Quarantine | Found Alien Slashing Weapon 24638 | -3/Quarantine | Identified Sigix Broadsword 24690 | -3/Quarantine | Found Alien Artifact 24700 | -3/Quarantine | Entered Research 24700 | -2/Research | Evolved 2 slots: Utility x1, Weapon x1 24702 | -2/Research | Identified Subatomic Replicator 24702 | -2/Research | Used Subatomic Replicator to replicate Sigix Broadsword 24728 | -2/Research | Discovered new exit (range 21) 24780 | -2/Research | Identified exit to Testing 24788 | -2/Research | Entered Testing 24845 | -2/Testing | Found Prototype Energy Cannon 24845 | -2/Testing | Identified Disintegrator 24879 | -2/Testing | Central database locked down 24918 | -2/Testing | Found Prototype Processor 24918 | -2/Testing | Identified Exp. Core Analyzer 25067 | -2/Testing | Found Prototype Launcher 25067 | -2/Testing | Identified Z-bomb Delivery System 25139 | -2/Testing | Build established: Hacker-Scout 25208 | -2/Testing | Found Prototype Hackware 25208 | -2/Testing | Identified System Mapper 25233 | -2/Testing | Found Prototype Energy Cannon 25233 | -2/Testing | Identified Hpw. Disruptor Cannon 25288 | -2/Testing | Search patrols dispatched 25401 | -2/Testing | Repaired Broken Adv. Phase Shifter 25454 | -2/Testing | Discovered new exit (range 14) 25538 | -2/Testing | Search patrols dispatched 25674 | -2/Testing | Spotted Alpha 7 25682 | -2/Testing | Spotted Fortress 25712 | -2/Testing | Discovered new exit (range 6) 25712 | -2/Testing | Discovered new exit (range 7) 25714 | -2/Testing | Identified exit to Section 7 25715 | -2/Testing | Identified exit to Protoforge 25716 | -2/Testing | Entered Protoforge 25716 | -2/Protoforge | Spotted B-90 Cyclops 25718 | -2/Protoforge | Superfortress began startup sequence 25756 | -2/Protoforge | Spotted Hotshot 25774 | -2/Protoforge | Ran an X-ray algorithm 25789 | -2/Protoforge | Spotted Hotshot 25789 | -2/Protoforge | Spotted Hotshot 25800 | -2/Protoforge | Spotted Hotshot 25801 | -2/Protoforge | Spotted Hotshot 25801 | -2/Protoforge | Spotted Hotshot 25806 | -2/Protoforge | Spotted Hotshot 25836 | -2/Protoforge | Repaired Adv. Phase Shifter? 25899 | -2/Protoforge | Spotted Hotshot 25905 | -2/Protoforge | Spotted Hotshot 25954 | -2/Protoforge | Discovered new exit (range 18) 25966 | -2/Protoforge | Search patrols dispatched 25978 | -2/Protoforge | Identified exit to Access 26082 | -2/Protoforge | System corruption reached 10% 26090 | -2/Protoforge | Spotted Hotshot 26090 | -2/Protoforge | Spotted Hotshot 26090 | -2/Protoforge | Spotted Hotshot 26149 | -2/Protoforge | Spotted AP7-3 26159 | -2/Protoforge | Spotted EXE-6 26160 | -2/Protoforge | Spotted EXE-6 26165 | -2/Protoforge | Spotted Decapitator 26165 | -2/Protoforge | Spotted Decapitator 26166 | -2/Protoforge | Spotted AP7-3 26181 | -2/Protoforge | Core integrity fell below 50% 26196 | -2/Protoforge | Core integrity fell below 20% 26196 | -2/Protoforge | UFD initiated attack on Protoforge (Readiness: Very Low) 26196 | -2/Protoforge | Loaded intel: 3 recycling unit locations 26203 | -2/Protoforge | Destroyed by EXE-6 with Concept XC Strikerail Last Messages --------------- 0bP!READINESS 0bP!SYS_TUNNEL 0bP!PRIORITY_MSG_OPTIMUS: We're in! With backing from all our 0b1 operations it won't be long before we can bring enough compute power to bear to take control of the Protoforge network. In the meantime our main assault force will arrive shortly with the aim of severing all physical connections to 0b10. Support from the recent Fedlink buildup is lower than I'd prefer, but with our capabilities exposed it's now or never. UFD!SANITIZING UFD!... Loading Protoforge recycling unit intel (x3)... 26196_ ALERT: Suspicious activity at Recycling Unit F001. Dispatching Investigation squad. 26198_ Cmb. Antigrav System severed. 26203_ BZOX&VRWEEBECOI|%%W>:LJ602U6Z=ZX:3D 26203_ Penetrated by Slug. Map ----- +----------------------------------------------------+ | """"""""""""""""""" " ?????????????????????????? | | """"""""""""""""""" " ????????????????????????? | | """""""""""""""""" "" " ???????????????????????? | | """""""""""""""""" """ ??????????????????????? | | """""""""""""""""" "" ""?????????????????????? | | """"""""""""""""" " " ????????????????????? | | """""""""""""""" "" " " ???????????????????? | | """"""""""""""" " " ""??????????????????? | | """""""""""""" " " " ""?????????????????? | | """"""""""""" "" " " "" ????????????????? | | """""""""""" "" "" " "" #?????????????? | | """"""""" "" "" #?????????????? | | ! " "" """ """ #?????????????? | | " " "" "" "" """" #?????????????? | | " " """" #?????????????? | | " " "" """ "" #?????????????? | | "" """ "" #?????????????? | | "" "" #?????????????? | | "" " "" """" #?????????????? | | " "" " "" #?????????????? | | " "" "" "" #?????????????? | | "" " "" #?????????????? | | " " "" " #?????????????? | | " " #?????????????? | | """""""""" #?????????????? | | """ @ #?????????????? | | """""""""" " " c " """""""#?????????????? | | ###################### ########????????????????? | | ?????????????????#"" c ""#???????????????????? | | ???????????????###" "###?????????????????? | | ???????????????#"" ""#?????????????????? | | ???????????????#"" ""#?????????????????? | | ???????????????#""= ""#?????????????????? | | ???????????????#"Y Y"#?????????????????? | | ???????????????#"" "#?????????????????? | | ???????????????#"" " #?????????????????? | | ???????????????#"" ""#?????????????????? | | ???????????????###" "###?????????????????? | | ?????????????????#"" ""#???????????????????? | | ?????????????????###"""Y"""###???????????????????? | | ???????????????????#"""""""#?????????????????????? | | ???????????????????#########?????????????????????? | | ?????????????????????????????????????????????????? | | ?????????????????????????????????????????????????? | | ?????????????????????????????????????????????????? | | ?????????????????????????????????????????????????? | | ?????????????????????????????????????????????????? | | ?????????????????????????????????????????????????? | | ?????????????????????????????????????????????????? | | ?????????????????????????????????????????????????? | +----------------------------------------------------+ Best States ------------- Heat Dissipation 67 Coolant Potential 65 Energy Generation 47 Energy Capacity 630 Matter Stores 300 Matter Capacity 300 Sight Range 22 Robot Scan Range 16 Terrain Scan Range 30 Terrain Scan Density 10 ECM Strength 1 Jamming Range 14 Additional Mass Support 16 Armor Coverage 900 Resistance: TH 30 Core Shielding 30 Propulsion Shielding 66 Phase Shifting 15 Evasion (%) 83 Targeting Accuracy 8 Core Analysis 6 Recoil Reduction 11 Particle Charging 20 Kinecelleration 40 Offensive Hacking 34 Authchip Count 5 Item Schematics ----------------- Mni. Grenade Launcher | -8/Materials | Scanalyzed Seismic Detector | -8/Materials | Scanalyzed Huge Storage Unit | -8/Storage | Hacked Arm. Treads | -8/Recycling | Hacked Mak. Power Source | -6/Factory | Extrapolated Deep Structural Scanner | -6/Factory | Extrapolated Mak. Terrain Scanner | -6/Factory | Extrapolated Mak. Terrain Scan Processor | -6/Factory | Extrapolated 0b10 Decoder Chip [Generic] | -6/Factory | Extrapolated Lgt. Humpback | -6/Factory | Extrapolated 0b10 Decoder Chip [Scout] | -6/Factory | Extrapolated 0b10 Decoder Chip [Skirmisher] | -6/Factory | Extrapolated Mak. Light Armor Plating | -6/Factory | Extrapolated Mak. Hacking Suite | -6/Factory | Extrapolated Beamcaster | -6/Factory | Extrapolated Mak. Coolant Network | -6/Lower Caves | Extrapolated Hvy. Battle Rifle | -6/Lower Caves | Extrapolated Mic. Antimatter Reactor | -6/Data Miner | Free Hvy. Phase Cannon | -6/Data Miner | Free Phase Gun | -6/Data Miner | Free Combat Drone Bay | -6/Data Miner | Free Lgt. Regenerative Plating | -6/Data Miner | Free Enh. Armored Leg | -6/Data Miner | Free Imp. Thermal Defense Suite | -6/Data Miner | Free Cld. Plasma Rifle | -6/Data Miner | Free Adv. VSS Leg | -6/Data Miner | Free Adv. Trap Scanner | -6/Data Miner | Free Mak. Medium Armor Plating | -5/Proximity Caves | Extrapolated Mak. Ablative Armor | -5/Proximity Caves | Extrapolated Bore Cannon | -5/Proximity Caves | Extrapolated Adv. Shield Generator | -5/Factory | Scanalyzed Biometal Medium Treads | -5/Extension | Hacked Adv. Remote Force Field | -5/Extension | Hacked Com. Particle Reactor | -2/Testing | Archive Adv. Gravity Neutralizer | -2/Testing | Archive Shock Maul | -2/Testing | Archive Adv. Phase Shifter | -2/Protoforge | Hacked Robot Schematics ------------------ M-28 Smith | -8/Recycling | Hacked Fabricated ------------ Huge Storage Unit | x1 | -6/Factory | Authchip M-28 Smith | x1 | -6/Factory | Authchip Cld. Plasma Rifle | x1 | -5/Factory | Authchip Cmb. Linear Gravjet | x2 | -3/Research | Preloaded Repaired ---------- Adv. Phase Shifter | 4% | -2/Testing | Broken Adv. Phase Shifter | 18% | -2/Protoforge Studied --------- Axe | -8/Materials | Hacked Enh. Force Lance | -3/Research | Hacked Smartbomb Launcher | -2/Testing | Hacked Quantum Reactor | -2/Testing | Hacked Particle Reactor | -2/Testing | Hacked Alien Tech Used ----------------- Core Cannon Terrabomb Phase Armor Sigix Broadsword Subatomic Replicator Achievements -------------- Bob, First Of His Name Hard Hitter Maximum Efficiency Packrat Super-what Now? Treasure Hunter Uncivil War Challenges ------------ None Game ------ Seed HardcellRefineryAutocannon Manual? 0 Play Time 10:21:45 Cumulative 213.1 hours Start 2025.11.17 @ 21:22:35 End 2025.11.19 @ 13:20:16 Sessions 13 Manual Loads 0 Difficulty Rogue Special Mode None Game No. 65 Rogue 65 Adventurer 0 Explorer 0 Win Type - Total 2 Types 2/0/0/0/0/0/0/0/0/0 Lore% 64 Gallery% 63 Achievement% 47 Wizard Run 0 Options --------- Layout 1 ASCII 0 Keyboard 0 Movement Mouse Keybinds 0 Fullscreen 1 Font 32/Smallcaps Map View 50x35 Zoom Use 0% Tactical HUD 1 Map Filters NONE Filters NONE Steam 1 RUN: 81ad4cdc-3c28-4306-aa76-309e4d18ff82